Cogmind - Beta 17 @@@ ROGUE MODE // 2026.06.29 @ 11:31:25 Player: star Result: Destroyed by JG-B70(R) with Subdweller Beam Cannon Performance ------------- Evolutions (0) 0 Regions Visited (2) 400 Robots Destroyed (18) 90 Value Destroyed (469) 469 Prototype IDs (0) 0 Alien Tech Used (0) 0 Bonus (0) 0 TOTAL SCORE: 959 Bonus ------- None Cogmind --------- Core Integrity 0/250 Matter 270/300 Energy 202/250 System Corruption 0% Temperature Warm (131) Movement Rolling (131) Ox3 Location -10/Subcaves Parts ------- > --- POWER (1) -------- Ion Engine > --- PROPULSION (2) --- Wheel Subdweller Monowheel > --- UTILITY (2) ------ Huge Storage Unit Makeshift System Restoration Module > --- WEAPON (2) ------- Subdweller Beam Cannon Subdweller Beam Cannon > --- INVENTORY (25) --- Light Ion Engine Subdweller Power Source Disposable Heat Sink Disposable Heat Sink Small Storage Unit Large Storage Unit Weight Redist. System Machine Analyzer Subdweller Optics Propulsion Shielding Riot Gun Medium Laser Subdweller Beam Cannon Subdweller Beam Cannon Subdweller Beam Cannon Subdweller Beam Cannon Subdweller Beam Cannon Subdweller Machine Gun Subdweller Machine Gun Barrage Gun Grenade Launcher Grenade Launcher Flamer Peak State ------------ > --- POWER ------------ Ion Engine > --- PROPULSION ------- Wheel Subdweller Monowheel > --- UTILITY ---------- Huge Storage Unit Makeshift System Restoration Module > --- WEAPON ----------- Subdweller Beam Cannon Subdweller Beam Cannon > --- INVENTORY -------- Light Ion Engine Subdweller Power Source Disposable Heat Sink Disposable Heat Sink Small Storage Unit Large Storage Unit Weight Redist. System Machine Analyzer Subdweller Optics Propulsion Shielding Medium Laser Subdweller Beam Cannon Subdweller Beam Cannon Subdweller Beam Cannon Subdweller Beam Cannon Subdweller Beam Cannon Light Assault Rifle Light Assault Rifle Subdweller Machine Gun Subdweller Machine Gun Barrage Gun Grenade Launcher Grenade Launcher Flamer [Rating: 17] Favorites ----------- Power Ion Engine Engine Ion Engine Propulsion Wheel Wheel Wheel Utility Huge Storage Unit Device Makeshift System Restoration Module Storage Huge Storage Unit Protection Propulsion Shielding Weapon Light Assault Rifle Energy Gun Medium Laser Energy Cannon Subdweller Beam Cannon Ballistic Gun Light Assault Rifle Launcher Grenade Launcher Build | -11 -10 -10 ------- Run | Yrd Mat Sub Slots Evolved . | . . . Power . | . . . Propulsion . | . . . Utility . | . . . Weapon . | . . . Parts Attached 22 | 6 5 11 Power 3 | 1 . 2 Engine 3 | 1 . 2 Core . | . . . Reactor . | . . . Propulsion 5 | 2 . 3 Treads . | . . . Leg . | . . . Wheel 5 | 2 . 3 Hover . | . . . Flight . | . . . Utility 5 | 1 3 1 Device 1 | . . 1 Storage 3 | 1 2 . Processor . | . . . Hackware . | . . . Protection 1 | . 1 . Artifact . | . . . Weapon 9 | 2 2 5 Energy Gun 1 | 1 . . Energy Cannon 3 | . . 3 Ballistic Gun 4 | 1 1 2 Ballistic Cannon . | . . . Launcher 1 | . 1 . Special Weapon . | . . . Impact Weapon . | . . . Slashing Weapon . | . . . Piercing Weapon . | . . . Special Melee Weapon . | . . . Unidentified Prototypes . | . . . Parts Lost 4 | . . 4 Power 1 | . . 1 Propulsion 3 | . . 3 Utility . | . . . Weapon . | . . . Highest Loss Streak 2 | . . 2 To Critical Strikes . | . . . Average Backups 11 | . 6 17 Power 1 | . 1 2 Propulsion . | . . . Utility 4 | . 2 6 Weapon 4 | . 2 8 Tool/Special . | . . . Unused Backups 14 | . . 14 Power 1 | . . 1 Propulsion . | . . . Utility 5 | . . 5 Weapon 8 | . . 8 Tool/Special . | . . . Average Slot Usage (%) 98 | . 99 97 Engine 12 | . 13 11 Wheel 27 | . 27 27 Device 4 | . . 10 Storage 14 | . 14 14 Protection 8 | . 13 3 Energy Gun 5 | . 10 . Energy Cannon 10 | . . 20 Ballistic Gun 11 | . 16 6 Peak Build Rating 17 | 6 8 17 Average Rating 10 | 4 7 13 On Entrance 4 | . 6 8 Avg Prop Armor Cover (%) . | . . . Naked Turns . | . . . Heaviest Build 106 | 13 91 106 Greatest Support 30 | 26 26 30 Greatest Overweight (x) 5 | 2 5 5 Average Overweight (x) 2 | . 2 3 Largest Inventory Capacity 25 | 8 25 25 Average Capacity 23 | 7 23 25 Most Carried 24 | 1 9 24 Average Carried 11 | . 6 17 Final Capacity 25 | 8 25 25 Final Carried 23 | 1 9 23 Class Distribution -------------------- 83% | Mutant 16% | Derelict-Mutant Dominant Class ---------------- Mutant | -10/Materials Mutant | -10/Subcaves Resources | -11 -10 -10 ----------- Run | Yrd Mat Sub Matter Collected 570 | 199 161 210 Remotely . | . . . Salvage Created 627 | . 236 391 Parts 38 | . 20 18 Haulers Intercepted 2 | . 2 . Recyclers Shooed . | . . . Parts Field Recycled . | . . . Retrieved Matter . | . . . Parts Self-Destructed 7 | . . 7 Prevented . | . . . Parts Restored . | . . . Kills | -11 -10 -10 ------- Run | Yrd Mat Sub Combat Hostiles Destroyed 16 | . 9 7 Guns 9 | . 7 2 Cannons 3 | . . 3 AOE 4 | . 2 2 Classes Destroyed 4 | . 3 1 Hauler 2 | . 2 . Swarmer 6 | . 6 . Grunt 3 | . 3 . Subdweller 7 | . . 7 Best Kill Streak 3 | . 3 2 Combat Bots Only 3 | . 3 2 Max Kills in Single Turn 2 | . 2 2 Gunslinging 1 | . 1 . Exploded 2 | . 1 2 Melee . | . . . Uniques/NPCs Destroyed . | . . . Combat | -11 -10 -10 -------- Run | Yrd Mat Sub Hostile Shots Fired 62 | . 36 26 Missed 14 | . 8 6 Hits 48 | . 28 20 Projectile 48 | . 28 20 Critical Strikes 1 | . . 1 Actively Blocked 1 | . . 1 Damage Taken 735 | . 263 472 Core 258 | . 92 166 Absorbed by Shields . | . . . Redirected to Shielding 29 | . 10 19 Core Remaining (%) 100 | 100 . . Volleys Fired 67 | . 30 37 Largest 2 | . 2 2 Hottest 160 | . 80 160 Shots Fired 125 | . 58 67 Gun 80 | . 54 26 Cannon 40 | . . 40 Launcher 5 | . 4 1 Special . | . . . Kinetic 56 | . 30 26 Thermal 64 | . 24 40 Explosive 5 | . 4 1 Electromagnetic . | . . . Robot Hit Streak 12 | . 5 12 Robot Miss Streak 3 | . 3 1 Penetration Max . | . . . Secondary Targets 1 | . 1 . Max Gunslinging Chain 1 | . 1 . Shots Hit Robots 72 | . 31 41 Core Hits 32 | . 18 14 Critical Kills . | . . . Critical Parts Destroyed . | . . . Critical Strikes 2 | . 2 . Burn 2 | . 2 . Melee Attacks . | . . . Impact . | . . . Slashing . | . . . Piercing . | . . . Sneak Attacks . | . . . Combat Hostiles . | . . . Follow-up Attacks . | . . . Damage Inflicted 1541 | . 649 892 Guns 510 | . 295 215 Cannons 587 | . . 587 Explosions 444 | . 354 90 Melee . | . . . Ramming . | . . . Kinetic 350 | . 135 215 Thermal 747 | . 160 587 Explosive 444 | . 354 90 Electromagnetic . | . . . Impact . | . . . Slashing . | . . . Piercing . | . . . Highest Corruption 1 | . 1 1 Average Corruption 1 | . 1 1 Corruption Purged 1 | . . 1 Corruption Blocked . | . . . Effects 7 | . 6 1 Message Errors 2 | . 2 . Matter Fused 3 | . 2 1 Data Loss (minor) 2 | . 2 . Overload Shots . | . . . Overflow Damage 11 | . 11 . Projectiles . | . . . Explosions 11 | . 11 . Melee . | . . . Knockbacks . | . . . Impact . | . . . Kinetic . | . . . Secondary . | . . . Self-Inflicted Damage . | . . . Shots . | . . . Rammed . | . . . Targets Rammed . | . . . Kicked . | . . . Crushed . | . . . Highest Temperature 195 | . 110 195 Average Temperature 50 | . 42 62 Received Heat Transfer 177 | . 36 141 Siege Activations . | . . . Martial Activations . | . . . Shielding Activations . | . . . Robots Disrupted . | . . . Combat Hostiles . | . . . Robots Corrupted . | . . . Combat Hostiles . | . . . Parts Fried . | . . . Impact Corruptions . | . . . Robots Melted . | . . . Combat Hostiles . | . . . Parts Melted 2 | . . 2 Heat Transferred 1406 | . 629 777 Parts Sabotaged . | . . . Parts Stolen . | . . . Parts Stripped . | . . . Power Chain Reactions . | . . . Alert | -11 -10 -10 ------- Run | Yrd Mat Sub Maximum Alert Level . | . . . Low Security (%) 100 | 100 100 . Level 1 . | . . . Level 2 . | . . . Level 3 . | . . . Level 4 . | . . . Level 5 . | . . . High Security . | . . . Max Security . | . . . Peak Influence 110 | . 110 . Initial . | . . . Average 25 | . 26 . Influence Increases 268 | . 268 . Destroy 0b10 Robot/C 180 | . 180 . Destroy 0b10 Robot/NC 10 | . 10 . Destroy Leader 44 | . 44 . Disable Machine 15 | . 15 . Destroy Structure 4 | . 4 . Lose Combat Pursuer 15 | . 15 . Influence Decreases 268 | . 238 30 Entered New Map 15 | . . 15 Time Decay 253 | . 238 15 Squads Dispatched 2 | . 2 . Investigation . | . . . Extermination . | . . . Reinforcement 2 | . 2 . Assault . | . . . Garrison . | . . . Intercept . | . . . Searches Triggered . | . . . Construction Impeded . | . . . Haulers Reinforced . | . . . Active Scanning Responses . | . . . Cargo Convoy Interrupts . | . . . Stealth | -11 -10 -10 --------- Run | Yrd Mat Sub Distress Signals . | . . . Communications Jammed . | . . . Distress Signals . | . . . Times Spotted 26 | . 17 9 Peak Tracking Total 5 | . 5 2 Tactical Retreats 2 | . 1 1 Traps | -11 -10 -10 ------- Run | Yrd Mat Sub Traps Triggered 3 | . 3 . Indirectly . | . . . Trap Hack Attempts . | . . . Triggered . | . . . Disarmed . | . . . Reprogrammed . | . . . Reused . | . . . Traps Extracted . | . . . Installed . | . . . Triggered . | . . . Machines | -11 -10 -10 ---------- Run | Yrd Mat Sub Machines Disabled 1 | . 1 . Max in Single Turn 1 | . 1 . Machines Repaired . | . . . Machines Dismantled . | . . . Machines Sabotaged . | . . . Overloaded Fab Kills . | . . . Hacking | -11 -10 -10 --------- Run | Yrd Mat Sub Machines Accessed . | . . . Terminals . | . . . Fabricators . | . . . Repair Stations . | . . . Recycling Units . | . . . Scanalyzers . | . . . Garrison Access . | . . . Total Hacks . | . . . Successful . | . . . Failed . | . . . Catastrophic . | . . . Database Lockouts . | . . . Manual 1 | . 1 . Terminals . | . . . Fabricators . | . . . Repair Stations . | . . . Recycling Units . | . . . Scanalyzers . | . . . Garrison Access . | . . . Terminal Hacks . | . . . Fabricator Hacks . | . . . Repair Station Hacks . | . . . Recycling Unit Hacks . | . . . Scanalyzer . | . . . Garrison Access Hacks . | . . . Unauthorized Hacks . | . . . Terminals . | . . . Fabricators . | . . . Repair Stations . | . . . Recycling Units . | . . . Scanalyzers . | . . . Garrison Access . | . . . Data Cores Recovered . | . . . Used . | . . . Hacking Detections . | . . . Full Trace Events . | . . . Feedback Events . | . . . Feedback Blocked . | . . . Robot Schematics Acquired . | . . . Robots Built . | . . . Authchips . | . . . Time . | . . . Total Robot Build Rating . | . . . Part Schematics Acquired . | . . . Parts Built . | . . . Authchips . | . . . Time . | . . . Total Part Build Rating . | . . . Part Studies Acquired . | . . . Parts Repaired . | . . . Time . | . . . Parts Recycled . | . . . Recycled Matter . | . . . Retrieved Matter . | . . . Retrieved Components . | . . . Parts Scanalyzed . | . . . Part Schematics Acquired . | . . . Parts Damaged . | . . . Bothacking | -11 -10 -10 ------------ Run | Yrd Mat Sub Used RIF Installer . | . . . Robots Hacked . | . . . Non-combat . | . . . Combat . | . . . Robot Hacks Applied . | . . . Relay Couplers Released . | . . . Fabnet Peak Effective % . | . . . Robots Rewired . | . . . Allies Hacked . | . . . Hacks Repelled . | . . . Allies | -11 -10 -10 -------- Run | Yrd Mat Sub Total Allies . | . . . Largest Group . | . . . Highest-Rated Group . | . . . Highest-Rated Ally . | . . . Total Orders . | . . . Ally Attacks . | . . . Total Damage . | . . . Kills . | . . . Allies Corrupted . | . . . Allies Melted . | . . . Intel | -11 -10 -10 ------- Run | Yrd Mat Sub Active Infowar (turns) . | . . . Robot Analysis Total . | . . . Derelict Logs Recovered . | . . . Drone Launches . | . . . Drone Recoveries . | . . . Exploration | -11 -10 -10 ------------- Run | Yrd Mat Sub Turns Passed 2745 | 62 1375 1308 Spaces Moved 1323 | 46 600 677 Core 6 | 6 . . Treads . | . . . Legs . | . . . Wheels 1317 | 40 600 677 Hover . | . . . Flight . | . . . Fastest Speed 50 | 50 90 131 Average Speed 131 | 90 125 140 Slowest Speed 175 | 150 175 175 Overloaded Moves . | . . . Propulsion Burnouts . | . . . Robots Hopped . | . . . Potential Cave-ins . | . . . Cave-ins Triggered . | . . . Exploration Rate (%) 43 | 3 88 39 Regions Visited 2 Branch Regions 1 Pre-discovered Areas . | . . . Known Exits Taken . | . . . Unknown Exits Taken 2 | 1 1 . Scrap Searched 10 | . . 10 Spaces Dug . | . . . Terrain Destroyed 10 | . 4 6 Melee . | . . . Projectile 3 | . . 3 AOE 7 | . 4 3 Terrain Rammed . | . . . Walls Destroyed . | . . . Machines Disabled . | . . . Actions | -11 -10 -10 --------- Run | Yrd Mat Sub Total 2196 | 63 1164 969 Wait 753 | 11 520 222 Move 1321 | 45 599 677 Hop . | . . . Pick Up 25 | 1 7 17 Fast Attach 10 | 6 2 2 Attach 3 | . 1 2 Detach . | . . . Swap 14 | . 5 9 Drop 3 | . . 3 Fire 67 | . 30 37 Melee . | . . . Ram . | . . . Kick . | . . . Crush . | . . . Escape Stasis . | . . . Rewire . | . . . Trap . | . . . Miscellaneous . | . . . Route ------- -11/Scrapyard -10/Materials (discovered 4 exits: [*Mat x2] / [*Min] / [*Sub]) -10/Subcaves History --------- Turn | Location | Event 24 | -11/Scrapyard | Discovered new exit (range 16) 63 | -11/Scrapyard | Entered Materials 317 | -10/Materials | Build established: Mutant 1028 | -10/Materials | Discovered new exit (range 12) 1175 | -10/Materials | Discovered new exit (range 6) 1195 | -10/Materials | Discovered new exit (range 7) 1416 | -10/Materials | Discovered new exit (range 9) 1438 | -10/Materials | Entered Subcaves 1439 | -10/Subcaves | Approached by a straggling Scientist 1699 | -10/Subcaves | Core integrity fell below 50% 2039 | -10/Subcaves | Build established: Derelict-Mutant 2263 | -10/Subcaves | Core integrity fell below 20% 2279 | -10/Subcaves | Disturbed a concealed Subdweller 2391 | -10/Subcaves | Shifting Twisted Machinery released Barrage Gun 2418 | -10/Subcaves | Shifting Twisted Machinery released Shrapnel Trap 2508 | -10/Subcaves | Build established: Mutant 2703 | -10/Subcaves | Shifting Twisted Machinery released Sub. Monowheel 2704 | -10/Subcaves | Shifting Twisted Machinery released Riot Gun 2746 | -10/Subcaves | Destroyed by JG-B70(R) with Subdweller Beam Cannon Last Messages --------------- 02264_ YT-3PG(R) destroyed. 02270_ Acquired 10 matter. 02272_ Acquired Sub. Beam Cannon. 02279_ V4-4ZA(R) angrily emerges from the Twisted Machinery. 02281_ V4-4ZA(R) destroyed. 02281_ Sub. Beam Cannon shoots sparks and powers down. 02286_ Acquired 10 matter. 02370_ JG-B70(R): "LEAVESUB!" Barrage Gun falls loose from the Twisted Machinery. 02405_ Acquired Barrage Gun. 02410_ Dropped Lgt. Assault Rifle. 02410_ Dropped Sub. Beam Cannon. 02411_ Dropped Lgt. Assault Rifle. 02413_ Acquired Sub. Beam Cannon. Shrapnel Trap falls loose from the Twisted Machinery. 02606_ NK-YSY(R) destroyed. 02606_ 92-ZBC(R) destroyed. Sub. Monowheel falls loose from the Twisted Machinery. Riot Gun falls loose from the Twisted Machinery. 02719_ Acquired Riot Gun. Map ----- +----------------------------------------------------+ | ??????????????????##??#"""""""""### ## ##### | | ??????????????????#"### "" # # | | ??????????????????# """ ## | | ??????????????????# """ ## " | | ??????????????????## ## ## ## "#" | | ??????????????????### % % #### ##### "# | | ??????????????????# ## [[# ##?# ##?#### ## | | ?????????????????"" ?# %"# ##??### ##?# ## ## | | ???????????##????#""## =% # ###?????# #?# ## | | ???????????# ???#" ### ### #?????? ##?# ## | | ???????????# "##""## ## #???? #??# #### | | ???????????#""?#" ""# ### #???# ## ??# ##??? | | ??????????##""###""" # ### ##??# #?###??# #??? | | ??????????#"&""###"" R ## #??# ??????## ###? | | ??????????##"%"] ##& ## ##?#???????# ### ## | | ??????????# % = ### # #?????????# # # | | ??????????#^^ [ #?# #?????????## ## | | ??????????## ^ #### #?????????### | | ???????????# #### ###### #??????????#### | | ??????????## #?# ##???# ?????????????## | | ??????????#^ ### #;#????????#?????????????? | | ??????????## ## ^ ######? ##????????????? | | ???????????# ^# # # # #????????????? | | ???????????## ^ #????????????? | | ?????????#### #????????????? | | ?????????# # @ ## ##????????????? | | ?????????# ### ##???####?????????????? | | ?????????### ### ### ##?????????????????????? | | ???????????## ###### ##?????????????????????? | | ????????????# ##??## #?????????????????????? | | ????????????## ^ ^#??## ##?????????????????????? | | ?????????????# ##### #??????????????????????? | | ????????????## ##?# ###????????????????????? | | ????????????# " ""#??# ##???????????????????? | | ???????????## " ""#?## ##??????????????????? | | ???????????# " ##### "=# #??????????????????? | | ???????????# "#""" """"" ##?????????????????? | | ???????????## "##"" " " #?????????????????? | | ???????????## # ""#### # #?????????????????? | | ???????????# #?" #??#### ##?????????????????? | | ???????????## #??? ?????# #??????????????????? | | ????????????## #????#????# #??????????????????? | | ?????????????###?????????### #??????????????????? | | ????????????????????????????###??????????????????? | | ?????????????????????????????????????????????????? | | ?????????????????????????????????????????????????? | | ?????????????????????????????????????????????????? | | ?????????????????????????????????????????????????? | | ?????????????????????????????????????????????????? | | ?????????????????????????????????????????????????? | +----------------------------------------------------+ Best States ------------- Heat Dissipation 25 Energy Generation 15 Energy Capacity 250 Matter Stores 300 Matter Capacity 300 Sight Range 16 Terrain Scan Density 10 Propulsion Shielding 33 Evasion (%) 42 Item Schematics ----------------- None Robot Schematics ------------------ None Fabricated ------------ Nothing Repaired ---------- Nothing Studied --------- None Alien Tech Used ----------------- None Achievements -------------- None Challenges ------------ None Game ------ Seed TrackerKineticShielding Manual? 0 Play Time 00:11:23 Cumulative 215.9 hours Start 2026.06.29 @ 11:20:53 End 2026.06.29 @ 11:31:25 Sessions 1 Manual Loads 0 Difficulty Rogue Special Mode None Game No. 361 Rogue 361 Adventurer 0 Explorer 0 Win Type - Total 2 Types 2/0/0/0/0/0/0/0/0/0 Lore% 63 Gallery% 61 Achievement% 47 Wizard Run 0 Options --------- Layout 2 ASCII 0 Keyboard 1 Movement Numpad Keybinds 0 Fullscreen 1 Font 20/SmallcapsGlow Map View 64x51 Zoom Use 0% Tactical HUD 1 Map Filters NONE Filters NONE Steam 1 RUN: fa8aeca7-6d03-40a8-8052-1857e69d4155